Cogmind - Beta 14 *** ADVENTURER MODE // 2024.12.02 @ 02:22:32 Player: User Result: Destroyed by P-80 Master with Gamma Rifle Performance ------------- Evolutions (8) 4000 Regions Visited (20) 4000 Robots Destroyed (354) 1770 Value Destroyed (16885) 16885 Prototype IDs (27) 540 Alien Tech Used (0) 0 Bonus (6204) 6204 TOTAL SCORE: 33399 Bonus ------- High Alert Combat Kills 2163 Follower Combat Kills 1920 Entered Garrisons 600 Used RIF Installer 1500 A7 Reached Mainframe 300 Friendly Fire -279 Cogmind --------- Core Integrity 0/1450 Matter 182/300 Energy 100/100 System Corruption 3% Temperature Cool (0) Movement Core (200) Ox3 Location -2/Research Parts ------- > --- POWER (3) -------- (None) > --- PROPULSION (4) --- (None) > --- UTILITY (10) ----- (None) > --- WEAPON (6) ------- Micro-nuke Launcher > --- INVENTORY (5) ---- Centrium Leg Centrium Leg Centrium Leg Peak State ------------ > --- POWER ------------ Light Quantum Reactor Light Quantum Reactor Light Quantum Reactor > --- PROPULSION ------- Centrium Leg Centrium Leg Centrium Leg Centrium Leg > --- UTILITY ---------- Advanced Power Amplifier Advanced Heat Sink Advanced Heat Sink Advanced Phase Shifter Heavy Armor Plating Improved Heavy Armor Plating > --- WEAPON ----------- Phase Gun Nova Cannon Enhanced Nova Cannon Enhanced Nova Cannon Railgun > --- INVENTORY -------- Light Quantum Reactor Centrium Leg Centrium Leg Centrium Leg Centrium Leg [Rating: 149] Favorites ----------- Power Constructs Engine F-cell Engine Power Core Light Nuclear Core Reactor Constructs Propulsion Light Treads Treads Light Treads Leg Carbon-fiber Leg Wheel Compact Wheel Hover Unit Antigrav Array Utility Large Storage Unit Device Advanced Heat Sink Storage Large Storage Unit Processor Advanced Visual Processing Unit Protection Heavy Armor Plating Weapon Advanced Assault Cannon Energy Gun Constructs Energy Cannon Constructs Ballistic Gun Constructs Ballistic Cannon Advanced Assault Cannon Launcher Heavy Rocket Launcher Slashing Weapon Falx Build | -11 -10 -9 -9 -8 -8 -8 -7 -7 -7 -7 -7 -5 -4 -4 -4 -4 -4 -4 -3 -2 ------- Run | Yrd Mat Mat Min Mat Gar Mat Fac Gar Fac Sto Rec Fac Fac Gar Ext Cet Arc Hub Res Res Slots Evolved 16 | . . 2 . 2 . . 2 . . . . 4 2 . . . . . 2 2 Power 2 | . . . . . . . . . . . . 1 1 . . . . . . . Propulsion 2 | . . 1 . 1 . . . . . . . . . . . . . . . . Utility 8 | . . 1 . . . . 1 . . . . 3 . . . . . . 1 2 Weapon 4 | . . . . 1 . . 1 . . . . . 1 . . . . . 1 . Parts Attached 199 | 6 3 10 . 7 16 18 6 24 3 25 6 12 4 8 7 . . . 10 34 Power 15 | 1 . 2 . . 1 1 1 1 . 1 . . 1 . . . . . . 6 Engine 6 | 1 . 2 . . 1 1 . . . 1 . . . . . . . . . . Core 2 | . . . . . . . 1 1 . . . . . . . . . . . . Reactor 7 | . . . . . . . . . . . . . 1 . . . . . . 6 Propulsion 46 | 2 . 4 . 3 9 3 . 5 . 6 2 3 . . . . . . . 9 Treads 11 | . . . . . 8 3 . . . . . . . . . . . . . . Leg 32 | 2 . 4 . 3 1 . . 5 . 6 2 1 . . . . . . . 8 Wheel 2 | . . . . . . . . . . . . 2 . . . . . . . . Hover 1 | . . . . . . . . . . . . . . . . . . . . 1 Flight . | . . . . . . . . . . . . . . . . . . . . . Utility 67 | 1 2 2 . 1 2 5 1 . . 6 3 8 3 6 6 . . . 10 11 Device 47 | . . . . . 1 1 1 . . 5 3 5 3 6 6 . . . 8 8 Storage 11 | 1 1 1 . 1 1 3 . . . . . 2 . . . . . . 1 . Processor 7 | . 1 1 . . . 1 . . . 1 . 1 . . . . . . 1 1 Hackware . | . . . . . . . . . . . . . . . . . . . . . Protection 2 | . . . . . . . . . . . . . . . . . . . . 2 Artifact . | . . . . . . . . . . . . . . . . . . . . . Weapon 71 | 2 1 2 . 3 4 9 4 18 3 12 1 1 . 2 1 . . . . 8 Energy Gun 4 | 1 . . . . . . . . . 1 . . . . 1 . . . . 1 Energy Cannon 6 | . . . . . . 1 1 . . 1 . . . . . . . . . 3 Ballistic Gun 38 | 1 1 2 . 3 4 6 3 11 2 3 . . . . . . . . . 2 Ballistic Cannon 17 | . . . . . . . . 7 1 7 1 . . . . . . . . 1 Launcher 5 | . . . . . . 2 . . . . . . . 2 . . . . . 1 Special Weapon . | . . . . . . . . . . . . . . . . . . . . . Impact Weapon . | . . . . . . . . . . . . . . . . . . . . . Slashing Weapon 1 | . . . . . . . . . . . . 1 . . . . . . . . Piercing Weapon . | . . . . . . . . . . . . . . . . . . . . . Special Melee Weapon . | . . . . . . . . . . . . . . . . . . . . . Unidentified Prototypes 12 | . . 2 . 1 . 2 . . . 3 1 . . . . . . . 3 . Parts Lost 92 | . . . . 1 9 3 1 8 . 6 3 11 . 6 6 . . 1 11 26 Power 9 | . . . . . 1 . . 1 . . . . . . . . . . 1 6 Propulsion 17 | . . . . 1 5 . 1 . . 1 2 4 . . . . . . . 3 Utility 25 | . . . . . . . . . . 2 . 3 . 2 2 . . . 6 10 Weapon 41 | . . . . . 3 3 . 7 . 3 1 4 . 4 4 . . 1 4 7 Highest Loss Streak 19 | . . . . 1 6 2 1 3 . 2 3 3 . 3 3 . . 1 5 19 To Critical Strikes 3 | . . . . . . . . . . . . . . . . . . . 2 1 Average Slot Usage (%) 80 | . 95 92 100 100 97 99 96 99 100 98 94 73 61 65 63 68 68 67 57 41 Engine 4 | . 14 11 11 9 8 9 1 . . 5 7 3 2 1 . . . . . . Core 1 | . . . . . . . 5 6 7 1 . 1 2 1 1 1 . . . . Reactor 1 | . . . . . . . . . . . . 1 . 3 3 3 5 4 3 5 Treads 6 | . . . . . 29 36 28 . . . . . 3 3 . . . 4 1 . Leg 12 | . 28 31 33 36 4 . . 29 30 29 27 6 . . 4 2 5 . 2 13 Device 13 | . . . . . . . 5 7 7 7 14 21 18 23 25 26 26 26 22 9 Storage 11 | . 14 14 22 18 17 18 15 15 15 15 12 11 10 6 5 5 5 5 6 . Processor 3 | . 9 13 11 9 9 9 7 7 7 6 . . 1 . . . . . . . Energy Gun 3 | . 4 . . . . . . . . . . 3 4 18 11 3 . 2 3 1 Energy Cannon 1 | . . . . . . . 2 . . . . 2 . . 1 . . 2 4 4 Ballistic Gun 13 | . 23 22 22 27 26 25 26 25 27 16 . 3 7 . 7 22 26 17 6 2 Ballistic Cannon 4 | . . . . . . . . 4 2 11 29 9 5 1 . . . 3 2 1 Peak Build Rating 149 | 6 7 24 24 31 36 37 40 66 64 62 59 94 105 125 129 125 121 128 135 149 Average Rating 69 | 3 6 19 24 28 32 30 36 59 60 53 50 75 93 104 116 122 121 123 118 80 On Entrance 57 | . 6 7 24 24 30 28 31 35 66 62 46 58 83 105 125 115 121 121 125 3 Naked Turns 122 | . . . . . . . . . . . . . . . . . . . 73 49 Heaviest Build 133 | 12 17 26 26 39 42 44 43 52 45 62 59 66 73 87 87 84 80 95 88 133 Greatest Support 218 | 20 20 45 45 55 100 80 80 99 96 96 52 46 74 126 141 168 168 218 171 120 Greatest Overweight (x) 4 | . . . . . 1 . . . . 1 2 4 1 1 . . . . . 1 Average Overweight (x) . | . . . . . . . . . . . 1 1 . . . . . . . . Largest Inventory Capacity 15 | 8 10 10 10 15 15 15 15 15 15 15 15 15 15 15 15 15 15 15 15 5 Average Capacity 13 | 7 8 10 10 14 15 15 15 15 15 15 15 15 15 15 15 15 15 15 12 5 Most Carried 15 | 4 7 10 10 15 15 15 15 15 14 15 15 13 13 13 12 12 12 13 12 5 Average Carried 10 | 1 3 9 10 11 14 14 14 12 14 12 14 8 10 9 9 12 12 12 9 3 Final Capacity 15 | 8 10 10 10 15 15 15 15 15 15 15 15 15 15 15 15 15 15 15 5 5 Final Carried 15 | 2 7 10 10 14 15 15 15 14 14 14 14 13 10 8 12 12 12 13 5 3 Scrap Engine Consumption 299 | . . . . . . . . . . . . 77 18 69 40 10 13 34 38 . Constructs Created 20 | . . . . . . . . . . . . 9 1 4 4 . . 1 1 . Constructs Modified 95 | . . . . . . . . . . . . 14 7 27 8 10 . 15 14 . Class Distribution -------------------- 22% | Scavenger-Skirmisher 20% | Construct 13% | Gunner 9% | Skirmisher 9% | Commander-Construct 8% | Mutant 8% | Scavenger-Construct 5% | Scavenger-Gunner Dominant Class ---------------- Mutant | -10/Materials Mutant | -9/Materials Mutant | -9/Mines Skirmisher | -8/Materials Scavenger-Skirmisher | -8/Garrison Scavenger-Skirmisher | -8/Materials Scavenger-Skirmisher | -7/Factory Scavenger-Skirmisher | -7/Garrison Scavenger-Skirmisher | -7/Factory Scavenger-Gunner | -7/Storage Gunner | -7/Recycling Construct | -5/Factory Construct | -4/Factory Construct | -4/Garrison Commander-Construct | -4/Extension Commander-Construct | -4/Cetus Commander-Construct | -4/Archives Commander-Construct | -4/Hub_04(d) Scavenger-Construct | -3/Research Mutant | -2/Research Resources | -11 -10 -9 -9 -8 -8 -8 -7 -7 -7 -7 -7 -5 -4 -4 -4 -4 -4 -4 -3 -2 ----------- Run | Yrd Mat Mat Min Mat Gar Mat Fac Gar Fac Sto Rec Fac Fac Gar Ext Cet Arc Hub Res Res Matter Collected 12433 | 182 154 431 . 548 986 902 232 1365 . 1305 890 1360 432 1124 483 56 48 372 981 582 Remotely . | . . . . . . . . . . . . . . . . . . . . . Salvage Created 17484 | . 177 873 . 777 1262 1051 198 1233 . 1056 783 2038 943 1591 810 187 99 1680 1188 1538 Parts 782 | . 7 42 . 37 80 65 15 72 . 54 23 86 35 67 39 5 4 51 50 50 Haulers Intercepted 24 | . 1 4 . 4 . 2 1 . . 5 . 1 . . . . . 4 1 1 Recyclers Shooed 17 | . . 3 . . . 2 . . . . 6 3 . . . . . 1 1 1 Parts Field Recycled . | . . . . . . . . . . . . . . . . . . . . . Retrieved Matter . | . . . . . . . . . . . . . . . . . . . . . Parts Self-Destructed . | . . . . . . . . . . . . . . . . . . . . . Prevented . | . . . . . . . . . . . . . . . . . . . . . Kills | -11 -10 -9 -9 -8 -8 -8 -7 -7 -7 -7 -7 -5 -4 -4 -4 -4 -4 -4 -3 -2 ------- Run | Yrd Mat Mat Min Mat Gar Mat Fac Gar Fac Sto Rec Fac Fac Gar Ext Cet Arc Hub Res Res Combat Hostiles Destroyed 254 | . 3 12 . 7 31 19 4 28 . 21 6 31 7 32 10 2 1 9 13 18 Guns 163 | . 3 12 . 7 31 15 4 24 . 9 . 10 4 16 9 2 1 6 6 4 Cannons 75 | . . . . . . 2 . 4 . 12 6 21 3 9 1 . . 3 6 8 AOE 13 | . . . . . . 2 . . . . . . . 6 . . . . . 5 Classes Destroyed 20 | . 2 3 . 4 2 3 . 1 . 1 2 1 1 . . . . . . . Worker 20 | . . . . 2 . 2 . . . 2 . 6 . . . . . 5 1 2 Builder 11 | . . . . . . 1 . . . 1 . 1 1 . 4 . . 2 1 . Hauler 24 | . 1 4 . 4 . 2 1 . . 5 . 1 . . . . . 4 1 1 Recycler 27 | . . 4 . 1 . 2 . . . 1 9 3 3 . . . . 3 . 1 Mechanic 1 | . . . . . . . . . . . . . 1 . . . . . . . Operator 5 | . . . . 2 . 1 . . . . . 1 . . . . . . . 1 Watcher 11 | . . 2 . 3 . . . . . 1 . . 2 . . 1 . 1 1 . Swarmer 40 | . . 5 . . 10 3 3 6 . . . . . 13 . . . . . . Grunt 107 | . 3 7 . 4 9 8 . 14 . 8 . 16 7 11 5 . . 4 3 8 Brawler 4 | . . . . 1 . 1 . 1 . . . 1 . . . . . . . . Duelist 6 | . . . . . . 1 . 1 . . . 1 . 1 . . . 1 1 . Protector 2 | . . . . . . 1 . . . . . . . . . . . 1 . . Sentry 50 | . . . . 2 8 5 1 4 . 11 3 1 . 6 3 . 1 2 1 2 Specialist 6 | . . . . . . . . 1 . . . 5 . . . . . . . . Hunter 9 | . . . . . . . . . . 1 . . . . 1 . . . 3 4 Programmer 19 | . . . . . 3 . . 1 . 1 . 5 . . . . . 1 5 3 Heavy 2 | . . . . . . . . . . . . 2 . . . . . . . . Behemoth 3 | . . . . . 1 . . . . . . . . 1 . . . . . 1 Cetus Guard 2 | . . . . . . . . . . . . . . . . 2 . . . . Scientist 2 | . . . . . . . . . . . 2 . . . . . . . . . Scrapper 3 | . . . . . . . . . . . 3 . . . . . . . . . Thug 1 | . . . . . . . . . . . . . . . 1 . . . . . Butcher 1 | . . . . . . . . . . . . . . . . . . 1 . . Best Kill Streak 14 | . 2 7 . 3 9 4 4 14 . 7 5 6 7 9 3 3 1 11 3 7 Combat Bots Only 14 | . 2 6 . 3 9 3 4 14 . 5 2 4 2 9 3 2 1 5 3 5 Max Kills in Single Turn 2 | . 1 1 . 1 2 2 1 2 . 2 1 1 2 2 2 1 1 2 1 2 Gunslinging 1 | . . . . . 1 . . 1 . . . . . . . . . . . . Exploded 2 | . . . . . . 2 . . . . . . . 2 . . . . . 2 Melee . | . . . . . . . . . . . . . . . . . . . . . Uniques/NPCs Destroyed . | . . . . . . . . . . . . . . . . . . . . . Combat | -11 -10 -9 -9 -8 -8 -8 -7 -7 -7 -7 -7 -5 -4 -4 -4 -4 -4 -4 -3 -2 -------- Run | Yrd Mat Mat Min Mat Gar Mat Fac Gar Fac Sto Rec Fac Fac Gar Ext Cet Arc Hub Res Res Hostile Shots Fired 2817 | . 13 77 . 39 167 67 108 264 . 274 50 166 36 283 132 28 11 100 316 686 Missed 929 | . 3 20 . 14 42 17 36 89 . 93 9 49 11 97 36 13 4 33 109 254 Damage Taken 26464 | . 89 508 . 378 1630 557 520 1552 . 1242 658 3041 375 3318 1342 291 150 1324 2069 7420 Core 3147 | . 8 58 . 81 217 39 59 200 . 131 52 210 74 274 109 11 . 48 126 1450 Absorbed by Shields 393 | . . . . . 114 . . . . . . . . . 221 58 . . . . Ignored by Resistances 8461 | . 29 156 . 103 493 159 170 477 . 405 182 726 111 919 441 96 40 364 1562 2028 Regen/Repaired (Parts) 5023 | . . . . . . . . . . . . 735 694 1522 617 245 . 722 488 . Core Remaining (%) 72 | 100 96 . 85 . . 38 . . . . 36 79 . . . . . 55 90 . Volleys Fired 873 | . 13 56 . 37 93 51 13 75 6 76 29 102 20 75 49 8 5 39 57 69 Largest 5 | . 2 2 . 3 3 3 4 4 1 4 4 4 4 5 5 5 5 5 4 4 Hottest 363 | . 60 46 . 69 80 118 94 176 65 192 192 261 287 330 352 307 307 307 212 363 Shots Fired 2723 | . 26 112 . 111 269 151 50 244 6 215 110 338 80 259 179 40 25 192 192 124 Gun 2012 | . 26 112 . 111 269 147 50 217 . 124 . 142 55 202 163 40 25 137 133 59 Cannon 694 | . . . . . . 3 . 27 6 91 110 196 25 47 16 . . 55 59 59 Launcher 17 | . . . . . . 1 . . . . . . . 10 . . . . . 6 Special . | . . . . . . . . . . . . . . . . . . . . . Kinetic 2011 | . 21 112 . 111 269 147 50 244 6 215 110 240 45 79 75 24 20 131 46 66 Thermal 589 | . 5 . . . . . . . . . . 57 20 170 104 16 5 16 144 52 Explosive 17 | . . . . . . 1 . . . . . . . 10 . . . . . 6 Electromagnetic 106 | . . . . . . 3 . . . . . 41 15 . . . . 45 2 . Robot Hit Streak 57 | . 18 16 . 21 35 12 28 57 . 44 19 40 17 48 31 13 6 16 14 34 Robot Miss Streak 9 | . 1 3 . 2 2 3 3 3 . 9 4 3 4 2 4 2 2 3 3 1 Penetration Max 2 | . . . . . . . . . . . . 2 1 . 1 1 . 2 . 1 Secondary Targets 36 | . . 4 . 2 13 5 2 8 . . . . . 1 . 1 . . . . Max Gunslinging Chain 1 | . . 1 . 1 1 1 1 1 . . . . . 1 . 1 . . . . Shots Hit Robots 1845 | . 21 81 . 82 164 103 37 165 . 134 56 251 52 162 131 31 17 124 126 108 Core Hits 821 | . 10 36 . 36 57 50 10 78 . 98 20 99 29 71 52 9 6 57 42 61 Critical Kills 17 | . . 1 . . . 1 1 . . 1 . 1 . 1 3 . . 3 4 1 Critical Parts Destroyed 20 | . . 1 . 1 1 1 . 1 . . . 2 . . 1 . . 6 5 1 Critical Strikes 76 | . . 3 . 1 2 2 1 1 . 5 5 14 1 6 13 1 . 10 9 2 Burn 15 | . . . . . . . . . . . . . . 4 9 1 . 1 . . Meltdown 1 | . . . . . . . . . . . . . . . . . . . . 1 Destroy 39 | . . 3 . 1 2 2 1 1 . 1 . 4 . 1 4 . . 9 9 1 Blast 21 | . . . . . . . . . . 4 5 10 1 1 . . . . . . Melee Attacks . | . . . . . . . . . . . . . . . . . . . . . Impact . | . . . . . . . . . . . . . . . . . . . . . Slashing . | . . . . . . . . . . . . . . . . . . . . . Piercing . | . . . . . . . . . . . . . . . . . . . . . Sneak Attacks . | . . . . . . . . . . . . . . . . . . . . . Combat Hostiles . | . . . . . . . . . . . . . . . . . . . . . Follow-up Attacks . | . . . . . . . . . . . . . . . . . . . . . Damage Inflicted 48002 | . 182 1061 . 1231 2892 1957 566 2877 . 3548 1671 6728 2009 5539 3097 779 378 3745 4000 5742 Guns 29245 | . 182 1061 . 1231 2892 1762 566 2480 . 1730 . 3149 1078 3067 2751 779 378 2458 2274 1407 Cannons 15331 | . . . . . . 46 . 397 . 1818 1671 3511 931 1216 346 . . 1287 1725 2383 Explosions 3415 | . . . . . . 148 . . . . . 68 . 1256 . . . . . 1943 Melee . | . . . . . . . . . . . . . . . . . . . . . Ramming 11 | . . . . . . 1 . . . . . . . . . . . . 1 9 Kinetic 30376 | . 138 1061 . 1231 2892 1762 566 2877 . 3548 1671 4865 1415 1363 1359 480 261 2491 603 1793 Thermal 12318 | . 44 . . . . . . . . . . 1181 398 2920 1738 299 117 298 3326 1997 Explosive 3347 | . . . . . . 148 . . . . . . . 1256 . . . . . 1943 Electromagnetic 1950 | . . . . . . 46 . . . . . 682 196 . . . . 956 70 . Impact . | . . . . . . . . . . . . . . . . . . . . . Slashing . | . . . . . . . . . . . . . . . . . . . . . Piercing . | . . . . . . . . . . . . . . . . . . . . . Highest Corruption 5 | . . . . . 2 3 . . . . . 5 . . . . . 2 2 3 Average Corruption 2 | . . . . . 1 2 . . . . . 3 . . . . . 1 1 2 Corruption Purged . | . . . . . . . . . . . . . . . . . . . . . Corruption Blocked . | . . . . . . . . . . . . . . . . . . . . . Effects 39 | . . . . . 4 22 . . . . . 7 . . . . . 3 3 . Message Errors 7 | . . . . . 1 5 . . . . . 1 . . . . . . . . Matter Fused 11 | . . . . . 1 6 . . . . . 1 . . . . . 2 1 . Heat Flow Errors 7 | . . . . . 1 4 . . . . . . . . . . . 1 1 . Energy Discharges 3 | . . . . . 1 . . . . . . 1 . . . . . . 1 . Parts Fused 1 | . . . . . . 1 . . . . . . . . . . . . . . Data Loss (minor) 2 | . . . . . . 2 . . . . . . . . . . . . . . Data Loss (major) 3 | . . . . . . . . . . . . 3 . . . . . . . . Misfires 2 | . . . . . . 2 . . . . . . . . . . . . . . Alerts 1 | . . . . . . 1 . . . . . . . . . . . . . . Weapon Failures 2 | . . . . . . 1 . . . . . 1 . . . . . . . . Overload Shots . | . . . . . . . . . . . . . . . . . . . . . Overflow Damage 649 | . . . . . . . . . . 67 15 50 220 98 . . . 33 33 133 Projectiles 589 | . . . . . . . . . . 67 15 50 220 46 . . . 33 33 125 Explosions 60 | . . . . . . . . . . . . . . 52 . . . . . 8 Melee . | . . . . . . . . . . . . . . . . . . . . . Knockbacks 66 | . . . . . . . . 2 . 3 15 20 6 5 . . . 6 . 9 Impact . | . . . . . . . . . . . . . . . . . . . . . Kinetic 62 | . . . . . . . . 2 . 3 14 20 6 4 . . . 5 . 8 Secondary 4 | . . . . . . . . . . . 1 . . 1 . . . 1 . 1 Self-Inflicted Damage 96 | . . . . . . . . . . . . 10 . 85 . . . . . 1 Shots 6 | . . . . . . . . . . . . 1 . 5 . . . . . . Rammed 8 | . . . . . . 1 . . . . . . . . . . . . . 7 Targets Rammed 12 | . . . . . . 1 . . . . . . . . . . . . 1 10 Kicked 4 | . . . . . . . . . . . . . . . . . . . 1 3 Crushed . | . . . . . . . . . . . . . . . . . . . . . Highest Temperature 401 | . 40 13 . 39 314 343 6 36 . 401 386 202 337 396 385 117 48 230 387 365 Average Temperature 99 | . 17 5 . 15 71 90 6 10 . 115 134 64 111 117 137 49 25 55 155 116 Received Heat Transfer 6485 | . 66 294 . 162 857 315 153 666 . 576 526 477 177 661 310 27 9 132 123 954 Effects 16 | . . . . . 2 . . . . 6 2 . 1 2 1 . . . 1 1 Shutdowns 2 | . . . . . . . . . . . . . . 1 . . . . 1 . Energy Bleed 3 | . . . . . 1 . . . . 1 . . . 1 . . . . . . Interference 7 | . . . . . . . . . . 5 2 . . . . . . . . . Matter Decay 2 | . . . . . 1 . . . . . . . 1 . . . . . . . Short Circuit 1 | . . . . . . . . . . . . . . . 1 . . . . . Damage (minor) 1 | . . . . . . . . . . . . . . . . . . . . 1 Siege Activations . | . . . . . . . . . . . . . . . . . . . . . Robots Corrupted 1 | . . . . . . . . . . . . . . . . . . 1 . . Combat Hostiles . | . . . . . . . . . . . . . . . . . . . . . Parts Fried 7 | . . . . . . . . . . . . . . . . . . 7 . . Impact Corruptions . | . . . . . . . . . . . . . . . . . . . . . Robots Melted 3 | . . . . . . . . . . . . . . 1 . . . . 1 1 Combat Hostiles 3 | . . . . . . . . . . . . . . 1 . . . . 1 1 Parts Melted 28 | . . . . . . . . . . . 1 1 . 6 8 1 . 1 7 3 Heat Transferred 15554 | . 100 . . . . . . . . . . 1628 518 3724 3256 592 185 555 3183 1813 Parts Sabotaged 3 | . . . . . . . . . . . . . . 3 . . . . . . Parts Stolen . | . . . . . . . . . . . . . . . . . . . . . Parts Stripped . | . . . . . . . . . . . . . . . . . . . . . Power Chain Reactions . | . . . . . . . . . . . . . . . . . . . . . Alert | -11 -10 -9 -9 -8 -8 -8 -7 -7 -7 -7 -7 -5 -4 -4 -4 -4 -4 -4 -3 -2 ------- Run | Yrd Mat Mat Min Mat Gar Mat Fac Gar Fac Sto Rec Fac Fac Gar Ext Cet Arc Hub Res Res Peak Influence 1294 | . 87 353 72 393 1090 846 305 1132 516 655 316 363 339 1294 1020 619 354 820 456 496 Initial 588 | . . 31 72 23 17 457 218 188 514 201 216 . 70 114 588 497 208 103 340 149 Average 422 | . 41 140 72 198 611 591 240 754 514 416 191 105 182 799 749 590 332 467 315 203 Maximum Alert Level 4 | . . 1 . 1 3 3 1 4 2 2 1 1 1 4 3 2 1 3 2 2 Low Security (%) 27 | 100 100 71 100 33 14 . . 3 . . 54 89 55 2 . . . 17 3 44 Level 1 28 | . . 28 . 66 7 . 100 16 . 38 45 10 44 18 . . 100 12 86 54 Level 2 24 | . . . . . 43 75 . 23 100 61 . . . 13 36 100 . 60 9 . Level 3 15 | . . . . . 34 24 . 45 . . . . . 41 63 . . 10 . . Level 4 3 | . . . . . . . . 10 . . . . . 23 . . . . . . Level 5 . | . . . . . . . . . . . . . . . . . . . . . High Security . | . . . . . . . . . . . . . . . . . . . . . Max Security . | . . . . . . . . . . . . . . . . . . . . . Squads Dispatched 45 | . 1 . . 6 . 4 1 . 1 5 . 8 1 . 2 . . 7 5 4 Investigation 7 | . 1 . . 1 . 1 . . 1 1 . . . . 2 . . . . . Extermination 8 | . . . . . . . . . . 1 . 3 . . . . . 2 1 1 Reinforcement 17 | . . . . 1 . 2 . . . 1 . 5 1 . . . . 3 1 3 Assault 6 | . . . . . . 1 . . . . . . . . . . . 2 3 . Garrison 7 | . . . . 4 . . 1 . . 2 . . . . . . . . . . Intercept . | . . . . . . . . . . . . . . . . . . . . . Searches Triggered . | . . . . . . . . . . . . . . . . . . . . . Construction Impeded 2 | . . . . . . . . . . . . . . . . . . 1 . 1 Haulers Reinforced 6 | . . . . . . . . . . 1 . 1 1 . . . . 1 . 2 Active Scanning Responses . | . . . . . . . . . . . . . . . . . . . . . Cargo Convoy Interrupts 1 | . . . . . . . . . . . . 1 . . . . . . . . Stealth | -11 -10 -9 -9 -8 -8 -8 -7 -7 -7 -7 -7 -5 -4 -4 -4 -4 -4 -4 -3 -2 --------- Run | Yrd Mat Mat Min Mat Gar Mat Fac Gar Fac Sto Rec Fac Fac Gar Ext Cet Arc Hub Res Res Distress Signals 20 | . . 3 . 4 . . . . . 2 . . . 1 4 1 . . 2 3 Communications Jammed 118 | . . . . . . . . . . . . 26 9 14 . . . . 69 . Distress Signals 97 | . . . . . . . . . . . . 5 9 14 . . . . 69 . Times Spotted 405 | . 3 21 . 21 31 32 9 32 . 25 5 38 11 43 28 5 4 26 29 42 Peak Tracking Total 20 | . 2 8 . 5 7 5 5 10 . 4 4 7 6 5 9 5 2 8 12 20 Tactical Retreats 17 | . . . . . . 1 . 3 . 1 . 2 1 2 1 . . 1 2 3 Traps | -11 -10 -9 -9 -8 -8 -8 -7 -7 -7 -7 -7 -5 -4 -4 -4 -4 -4 -4 -3 -2 ------- Run | Yrd Mat Mat Min Mat Gar Mat Fac Gar Fac Sto Rec Fac Fac Gar Ext Cet Arc Hub Res Res Traps Triggered 20 | . . . . . . 3 1 3 . 2 . 1 . 6 1 . . 1 1 1 Indirectly . | . . . . . . . . . . . . . . . . . . . . . Trap Hack Attempts . | . . . . . . . . . . . . . . . . . . . . . Triggered . | . . . . . . . . . . . . . . . . . . . . . Disarmed . | . . . . . . . . . . . . . . . . . . . . . Reprogrammed . | . . . . . . . . . . . . . . . . . . . . . Reused . | . . . . . . . . . . . . . . . . . . . . . Traps Extracted . | . . . . . . . . . . . . . . . . . . . . . Installed . | . . . . . . . . . . . . . . . . . . . . . Triggered 1 | . . . . . . . . . . . . 1 . . . . . . . . Machines | -11 -10 -9 -9 -8 -8 -8 -7 -7 -7 -7 -7 -5 -4 -4 -4 -4 -4 -4 -3 -2 ---------- Run | Yrd Mat Mat Min Mat Gar Mat Fac Gar Fac Sto Rec Fac Fac Gar Ext Cet Arc Hub Res Res Machines Disabled 44 | . . 1 . 1 5 1 . 5 . 6 4 5 2 6 . . 1 6 . 1 Max in Single Turn 3 | . . 1 . . 1 1 . 1 . 2 1 3 1 1 . . 1 2 . 1 Garrison Access 1 | . . . . . . . . . . 1 . . . . . . . . . . Garrison Relay 12 | . . . . . 5 . . 4 . . . . . 3 . . . . . . Machines Repaired . | . . . . . . . . . . . . . . . . . . . . . Machines Dismantled . | . . . . . . . . . . . . . . . . . . . . . Machines Sabotaged . | . . . . . . . . . . . . . . . . . . . . . Overloaded Fab Kills . | . . . . . . . . . . . . . . . . . . . . . Hacking | -11 -10 -9 -9 -8 -8 -8 -7 -7 -7 -7 -7 -5 -4 -4 -4 -4 -4 -4 -3 -2 --------- Run | Yrd Mat Mat Min Mat Gar Mat Fac Gar Fac Sto Rec Fac Fac Gar Ext Cet Arc Hub Res Res Machines Accessed 66 | . 2 2 . 7 2 6 1 4 1 11 2 3 1 4 8 2 1 7 1 1 Terminals 60 | . 2 2 . 6 2 6 . 4 1 10 1 3 . 4 8 2 . 7 1 1 Fabricators . | . . . . . . . . . . . . . . . . . . . . . Repair Stations . | . . . . . . . . . . . . . . . . . . . . . Recycling Units . | . . . . . . . . . . . . . . . . . . . . . Scanalyzers . | . . . . . . . . . . . . . . . . . . . . . Garrison Access 4 | . . . . 1 . . 1 . . 1 . . 1 . . . . . . . Total Hacks 143 | . 7 7 . 17 3 12 1 6 2 18 10 7 1 9 13 6 5 16 1 2 Successful 78 | . 1 4 . 8 2 4 1 4 1 10 8 4 1 3 6 4 5 9 1 2 Failed 65 | . 6 3 . 9 1 8 . 2 1 8 2 3 . 6 7 2 . 7 . . Catastrophic 14 | . 2 . . . . 3 . 1 1 2 1 1 . 2 . . . 1 . . Database Lockouts . | . . . . . . . . . . . . . . . . . . . . . Manual 46 | . 2 6 . 15 . 11 . . . 7 . 1 . . 1 1 . 1 . 1 Terminals 127 | . 7 7 . 16 3 12 . 6 2 17 3 7 . 9 13 6 . 16 1 2 Fabricators . | . . . . . . . . . . . . . . . . . . . . . Repair Stations . | . . . . . . . . . . . . . . . . . . . . . Recycling Units . | . . . . . . . . . . . . . . . . . . . . . Scanalyzers . | . . . . . . . . . . . . . . . . . . . . . Garrison Access 4 | . . . . 1 . . 1 . . 1 . . 1 . . . . . . . Terminal Hacks 65 | . 1 1 . 2 2 4 . 4 1 9 8 4 . 3 6 4 5 9 1 1 Record 13 | . . . . . . . . . . . 5 . . . . 3 5 . . . Robot Analysis 2 | . . . . . . . . . . 1 . . . . . . . . 1 . Prototype ID Bank 3 | . . 1 . . . . . . . . . 1 . . . . . 1 . . Open Door 15 | . . . . . 1 . . 1 . 5 . . . 1 6 1 . . . . Branch Access Points 6 | . . . . 1 . 1 . . 1 1 1 . . . . . . 1 . . Emergency Access Points 6 | . . . . . 1 . . 1 . . . . . 1 . . . 2 . 1 Repair Station Index 1 | . . . . . . . . . . . . 1 . . . . . . . . Alert Level 2 | . . . . . . 1 . . . 1 . . . . . . . . . . Unreport Threat 4 | . . . . 1 . 2 . . . . . 1 . . . . . . . . Locate Traps 6 | . 1 . . . . . . . . 1 . 1 . . . . . 3 . . Patrol Status 1 | . . . . . . . . . . . . . . . . . . 1 . . Zone Layout 1 | . . . . . . . . . . . . . . . . . . 1 . . Patrol Navigation 1 | . . . . . . . . 1 . . . . . . . . . . . . Security Stations 2 | . . . . . . . . 1 . . . . . 1 . . . . . . Release Object 2 | . . . . . . . . . . . 2 . . . . . . . . . Fabricator Hacks . | . . . . . . . . . . . . . . . . . . . . . Repair Station Hacks . | . . . . . . . . . . . . . . . . . . . . . Recycling Unit Hacks . | . . . . . . . . . . . . . . . . . . . . . Scanalyzer . | . . . . . . . . . . . . . . . . . . . . . Garrison Access Hacks 4 | . . . . 1 . . 1 . . 1 . . 1 . . . . . . . Unlock Access 3 | . . . . 1 . . 1 . . . . . 1 . . . . . . . Seal Access 1 | . . . . . . . . . . 1 . . . . . . . . . . Unauthorized Hacks 9 | . . 3 . 5 . . . . . . . . . . . . . . . 1 Terminals 9 | . . 3 . 5 . . . . . . . . . . . . . . . 1 Botnet 8 | . . 2 . 5 . . . . . . . . . . . . . . . 1 Operators 1 | . . 1 . . . . . . . . . . . . . . . . . . Fabricators . | . . . . . . . . . . . . . . . . . . . . . Repair Stations . | . . . . . . . . . . . . . . . . . . . . . Recycling Units . | . . . . . . . . . . . . . . . . . . . . . Scanalyzers . | . . . . . . . . . . . . . . . . . . . . . Garrison Access . | . . . . . . . . . . . . . . . . . . . . . Data Cores Recovered 5 | . . . . 2 . . . . . . . 1 . . . . . 1 . 1 Used 1 | . . . . 1 . . . . . . . . . . . . . . . . Hacking Detections 48 | . 2 2 . 4 1 6 . 3 1 5 1 3 1 3 5 3 . 6 1 1 Full Trace Events 6 | . 1 . . . . 1 . . 1 . . . . 1 2 . . . . . Feedback Events . | . . . . . . . . . . . . . . . . . . . . . Feedback Blocked . | . . . . . . . . . . . . . . . . . . . . . Robot Schematics Acquired . | . . . . . . . . . . . . . . . . . . . . . Robots Built . | . . . . . . . . . . . . . . . . . . . . . Authchips . | . . . . . . . . . . . . . . . . . . . . . Time . | . . . . . . . . . . . . . . . . . . . . . Total Robot Build Rating . | . . . . . . . . . . . . . . . . . . . . . Part Schematics Acquired . | . . . . . . . . . . . . . . . . . . . . . Parts Built . | . . . . . . . . . . . . . . . . . . . . . Authchips . | . . . . . . . . . . . . . . . . . . . . . Time . | . . . . . . . . . . . . . . . . . . . . . Total Part Build Rating . | . . . . . . . . . . . . . . . . . . . . . Parts Repaired . | . . . . . . . . . . . . . . . . . . . . . Time . | . . . . . . . . . . . . . . . . . . . . . Parts Recycled . | . . . . . . . . . . . . . . . . . . . . . Recycled Matter . | . . . . . . . . . . . . . . . . . . . . . Retrieved Matter . | . . . . . . . . . . . . . . . . . . . . . Retrieved Components . | . . . . . . . . . . . . . . . . . . . . . Parts Scanalyzed . | . . . . . . . . . . . . . . . . . . . . . Part Schematics Acquired . | . . . . . . . . . . . . . . . . . . . . . Parts Damaged . | . . . . . . . . . . . . . . . . . . . . . Bothacking | -11 -10 -9 -9 -8 -8 -8 -7 -7 -7 -7 -7 -5 -4 -4 -4 -4 -4 -4 -3 -2 ------------ Run | Yrd Mat Mat Min Mat Gar Mat Fac Gar Fac Sto Rec Fac Fac Gar Ext Cet Arc Hub Res Res Used RIF Installer 3 | . . . . . 1 . . 1 . . . . . 1 . . . . . . Watcher Feeds 1 | . . . . . . . . . . . . . . 1 . . . . . . Program Shield 1 | . . . . . . . . 1 . . . . . . . . . . . . Robots Hacked . | . . . . . . . . . . . . . . . . . . . . . Non-combat . | . . . . . . . . . . . . . . . . . . . . . Combat . | . . . . . . . . . . . . . . . . . . . . . Robot Hacks Applied . | . . . . . . . . . . . . . . . . . . . . . Relay Couplers Released 44 | . . . . . 18 . . 15 . . . . . 11 . . . . . . Machine Destruction 44 | . . . . . 18 . . 15 . . . . . 11 . . . . . . Fabnet Peak Effective % . | . . . . . . . . . . . . . . . . . . . . . Robots Rewired 13 | . . . . . . . . . . . . . . . 13 . . . . . Allies Hacked . | . . . . . . . . . . . . . . . . . . . . . Hacks Repelled . | . . . . . . . . . . . . . . . . . . . . . Allies | -11 -10 -9 -9 -8 -8 -8 -7 -7 -7 -7 -7 -5 -4 -4 -4 -4 -4 -4 -3 -2 -------- Run | Yrd Mat Mat Min Mat Gar Mat Fac Gar Fac Sto Rec Fac Fac Gar Ext Cet Arc Hub Res Res Total Allies 34 | . . . 3 . 1 . . 2 . . . . . 2 21 5 . . . . Largest Group 15 | . . . 3 3 1 1 . 2 1 . . . . 2 14 15 13 11 . . Highest-Rated Group 922 | . . . 40 40 149 149 . 59 39 . . . . 92 699 922 790 598 . . Highest-Rated Ally 159 | . . . 16 16 149 149 . 39 39 . . . . 46 159 159 159 96 . . Total Orders . | . . . . . . . . . . . . . . . . . . . . . Ally Attacks 308 | . . . . 50 . 15 . 3 . . . . . 11 103 28 17 81 . . Total Damage 8989 | . . . . 547 . 868 . 71 . . . . . 228 2940 1043 351 2941 . . Kills 55 | . . . . 7 . 9 . 1 . . . . . 2 14 2 4 16 . . Allies Corrupted 2 | . . . . . . . . . 1 . . . . . . . . 1 . . Allies Melted . | . . . . . . . . . . . . . . . . . . . . . Intel | -11 -10 -9 -9 -8 -8 -8 -7 -7 -7 -7 -7 -5 -4 -4 -4 -4 -4 -4 -3 -2 ------- Run | Yrd Mat Mat Min Mat Gar Mat Fac Gar Fac Sto Rec Fac Fac Gar Ext Cet Arc Hub Res Res Robot Analysis Total 2 | . . . . . . . . . . 1 . . . . . . . . 1 . Derelict Logs Recovered . | . . . . . . . . . . . . . . . . . . . . . Drone Launches . | . . . . . . . . . . . . . . . . . . . . . Drone Recoveries . | . . . . . . . . . . . . . . . . . . . . . Exploration | -11 -10 -9 -9 -8 -8 -8 -7 -7 -7 -7 -7 -5 -4 -4 -4 -4 -4 -4 -3 -2 ------------- Run | Yrd Mat Mat Min Mat Gar Mat Fac Gar Fac Sto Rec Fac Fac Gar Ext Cet Arc Hub Res Res Turns Passed 13967 | 55 147 457 23 846 1238 1121 189 855 93 1110 882 1666 494 1469 741 211 110 589 925 746 Spaces Moved 7907 | 38 86 216 20 538 631 583 84 539 71 645 384 664 347 696 479 140 95 519 682 450 Core 223 | 6 . . . . . . . . . . . . . . . . . . 135 82 Treads 2646 | . . . . . 550 583 84 . . . . . 288 410 . . . 471 260 . Legs 4144 | 32 86 216 20 538 81 . . 539 71 645 384 273 . 62 418 61 95 48 287 288 Wheels 233 | . . . . . . . . . . . . 233 . . . . . . . . Hover 297 | . . . . . . . . . . . . 158 59 . . . . . . 80 Flight 364 | . . . . . . . . . . . . . . 224 61 79 . . . . Fastest Speed 50 | 50 120 120 120 120 120 160 160 105 105 105 179 105 90 90 94 87 87 87 50 50 Average Speed 131 | 108 120 120 120 120 154 160 160 106 105 127 200 169 119 173 94 93 87 87 106 101 Slowest Speed 450 | 120 120 120 120 120 190 160 160 112 105 190 265 450 163 192 94 94 87 87 213 190 Overloaded Moves . | . . . . . . . . . . . . . . . . . . . . . Propulsion Burnouts . | . . . . . . . . . . . . . . . . . . . . . Robots Hopped 5 | . . . . . . . . . . . . . . . 5 . . . . . Cave-ins Triggered 1 | . . . . . . . . . . . . 1 . . . . . . . . Exploration Rate (%) 41 | 4 21 27 9 37 79 58 4 75 3 82 62 16 11 81 74 70 79 37 26 11 Regions Visited 20 Branch Regions 7 Pre-discovered Areas . | . . . . . . . . . . . . . . . . . . . . . Known Exits Taken 5 | . . . . 1 . . 1 . 1 1 . . 1 . . . . . . . Unknown Exits Taken 12 | 1 1 1 1 . . 1 . . . . 1 1 . . 1 1 1 1 1 . Scrap Searched . | . . . . . . . . . . . . . . . . . . . . . Spaces Dug 8 | . . . . . . . . . 6 . . . . . 2 . . . . . Terrain Destroyed 211 | . . . . . . 14 . 1 6 46 23 19 10 13 9 1 . 14 9 46 Melee . | . . . . . . . . . . . . . . . . . . . . . Projectile 130 | . . . . . . 2 . 1 6 25 23 19 10 5 9 1 . 14 9 6 AOE 81 | . . . . . . 12 . . . 21 . . . 8 . . . . . 40 Terrain Rammed . | . . . . . . . . . . . . . . . . . . . . . Walls Destroyed . | . . . . . . . . . . . . . . . . . . . . . Machines Disabled . | . . . . . . . . . . . . . . . . . . . . . Actions | -11 -10 -9 -9 -8 -8 -8 -7 -7 -7 -7 -7 -5 -4 -4 -4 -4 -4 -4 -3 -2 --------- Run | Yrd Mat Mat Min Mat Gar Mat Fac Gar Fac Sto Rec Fac Fac Gar Ext Cet Arc Hub Res Res Total 9872 | 51 107 316 19 656 767 716 117 691 82 809 435 976 380 815 668 200 110 561 770 626 Wait 501 | . . 2 . 56 6 32 . 38 3 10 4 162 3 20 69 53 11 3 10 19 Move 7880 | 37 85 215 19 537 630 582 84 538 70 644 383 663 347 695 469 139 94 518 681 450 Hop 4 | . . . . . . . . . . . . . . . 4 . . . . . Pick Up 211 | 8 6 19 . 13 16 19 8 12 . 30 6 18 2 4 7 . . 1 6 36 Fast Attach . | . . . . . . . . . . . . . . . . . . . . . Attach 112 | 6 1 3 . 3 9 7 3 10 . 9 3 9 2 7 4 . . . 6 30 Detach 9 | . . . . . . . . . . . 2 3 . 2 1 . . . 1 . Swap 87 | . 2 7 . 4 7 11 3 14 3 16 3 3 2 1 3 . . . 4 4 Drop 113 | . . 14 . 6 6 13 6 4 . 24 5 16 4 2 1 . . . 4 8 Fire 873 | . 13 56 . 37 93 51 13 75 6 76 29 102 20 75 49 8 5 39 57 69 Melee . | . . . . . . . . . . . . . . . . . . . . . Ram 7 | . . . . . . . . . . . . . . . . . . . . 7 Kick 4 | . . . . . . . . . . . . . . . . . . . 1 3 Crush 1 | . . . . . . 1 . . . . . . . . . . . . . . Escape Stasis 9 | . . . . . . . . . . . . . . 9 . . . . . . Rewire 61 | . . . . . . . . . . . . . . . 61 . . . . . Trap . | . . . . . . . . . . . . . . . . . . . . . Miscellaneous . | . . . . . . . . . . . . . . . . . . . . . Route ------- -11/Scrapyard -10/Materials -9/Materials -9/Mines -8/Materials (discovered 2 exits: *Fac / Gar) -8/Garrison (discovered 2 exits: *Mat x2) -8/Materials (discovered 2 exits: *Fac x2) -7/Factory -7/Garrison (discovered 3 exits: *Fac x3) -7/Factory (discovered 4 exits: *Sto x2 / Low x2) -7/Storage (discovered 2 exits: [*Fac] / *Rec) -7/Recycling -5/Factory -4/Factory -4/Garrison (discovered 3 exits: *Ext x3) -4/Extension (discovered 2 exits: *Res / *Cet) -4/Cetus -4/Archives (discovered 3 exits: *Res / *Hub x2) -4/Hub_04(d) (discovered 2 exits: *Res x2) -3/Research -2/Research History --------- Turn | Location | Event 3 | -11/Scrapyard | Discovered new exit (range 15) 56 | -11/Scrapyard | Entered Materials 159 | -10/Materials | Discovered new exit (range 14) 203 | -10/Materials | Entered another Materials area 203 | -9/Materials | Evolved 2 slots: Propulsion x1, Utility x1 314 | -9/Materials | Build established: Mutant 538 | -9/Materials | Discovered new exit (range 17) 660 | -9/Materials | Entered Mines 662 | -9/Mines | Assisted by bots powering up and referring to "LRC-V3" 678 | -9/Mines | Discovered new exit (range 4) 683 | -9/Mines | Entered Materials 683 | -8/Materials | Accompanied by 3 allies 683 | -8/Materials | Evolved 2 slots: Propulsion x1, Weapon x1 684 | -8/Materials | Garrison activated, responded to threat 740 | -8/Materials | Identified exit to Garrison 795 | -8/Materials | Met 7R-MNS 990 | -8/Materials | Build established: Skirmisher 1106 | -8/Materials | Garrison activated, responded to threat 1250 | -8/Materials | Discovered new exit (range 14) 1529 | -8/Materials | Entered Garrison 1529 | -8/Garrison | Accompanied by 1 ally 1543 | -8/Garrison | Triggered checkpoint 1572 | -8/Garrison | Spotted B-75 Beast 1632 | -8/Garrison | Destroyed B-75 Beast 1656 | -8/Garrison | Lost 6 parts (1p2n3w) 1657 | -8/Garrison | Triggered checkpoint 1661 | -8/Garrison | Garrison Relay disabled 1701 | -8/Garrison | Triggered checkpoint 1764 | -8/Garrison | Lost 3 parts (3n) 1772 | -8/Garrison | Destroyed 9 combat bots 1815 | -8/Garrison | Triggered checkpoint 1930 | -8/Garrison | Discovered new exit (range 12) 1933 | -8/Garrison | Triggered checkpoint 1964 | -8/Garrison | Garrison Relay disabled 2073 | -8/Garrison | Build established: Scavenger-Skirmisher 2077 | -8/Garrison | Triggered checkpoint 2117 | -8/Garrison | Triggered checkpoint 2119 | -8/Garrison | Core integrity fell below 50% 2151 | -8/Garrison | Garrison Relay disabled 2179 | -8/Garrison | Discovered new exit (range 17) 2343 | -8/Garrison | Triggered checkpoint 2463 | -8/Garrison | Rescued HV-R5K 2480 | -8/Garrison | Garrison Relay disabled 2491 | -8/Garrison | Garrison Relay disabled 2701 | -8/Garrison | Installed Relay Interface Framework 2767 | -8/Garrison | Entered Materials 2767 | -8/Materials | Accompanied by 1 ally (HV-R5K) 3253 | -8/Materials | Discovered new exit (range 14) 3567 | -8/Materials | First assault squad dispatched 3777 | -8/Materials | Discovered new exit (range 20) 3888 | -8/Materials | Entered Factory 3888 | -7/Factory | Evolved 2 slots: Utility x1, Weapon x1 4028 | -7/Factory | Garrison activated, responded to threat 4077 | -7/Factory | Identified exit to Garrison 4077 | -7/Factory | Entered Garrison 4109 | -7/Garrison | Triggered checkpoint 4145 | -7/Garrison | Garrison Relay disabled 4241 | -7/Garrison | Triggered checkpoint 4294 | -7/Garrison | Lost 3 parts (3w) 4330 | -7/Garrison | Destroyed 14 combat bots 4349 | -7/Garrison | Triggered checkpoint 4439 | -7/Garrison | Triggered checkpoint 4492 | -7/Garrison | Garrison Relay disabled 4514 | -7/Garrison | Discovered new exit (range 8) 4604 | -7/Garrison | Garrison Relay disabled 4617 | -7/Garrison | Discovered new exit (range 5) 4633 | -7/Garrison | Learned Factory security intel 4649 | -7/Garrison | Triggered checkpoint 4677 | -7/Garrison | Garrison Relay disabled 4688 | -7/Garrison | Rescued a captive Derelict 4696 | -7/Garrison | Rescued a captive Derelict 4902 | -7/Garrison | Discovered new exit (range 11) 4917 | -7/Garrison | Expanded RIF knowledge: Program Shield 4932 | -7/Garrison | Entered Factory 4932 | -7/Factory | Accompanied by 1 ally 4948 | -7/Factory | Identified exit to Storage 4948 | -7/Factory | Identified exit to Lower Caves 5025 | -7/Factory | Entered Storage 5203 | -7/Storage | Identified exit to Recycling 5243 | -7/Storage | Garrison activated, responded to threat 5521 | -7/Storage | Build established: Scavenger-Gunner 5743 | -7/Storage | Discovered new exit (range 12) 5770 | -7/Storage | Core integrity fell below 50% 6128 | -7/Storage | Used back door to open Recycling access 6135 | -7/Storage | Entered Recycling 6453 | -7/Recycling | Build established: Gunner 6675 | -7/Recycling | Scanned before Scraplab entrance 6716 | -7/Recycling | Discovered new exit (range 3) 6732 | -7/Recycling | Angered Scraplab inhabitants 6734 | -7/Recycling | Found Prototype Device 6743 | -7/Recycling | Identified Scrap Engine 6797 | -7/Recycling | Lost 3 parts (2n1w) 7004 | -7/Recycling | Discovered new exit (range 4) 7017 | -7/Recycling | Entered Factory 7017 | -5/Factory | Evolved 4 slots: Power x1, Utility x3 8036 | -5/Factory | Cargo convoy interrupted 8114 | -5/Factory | Build established: Construct 8370 | -5/Factory | Crushed by falling debris 8401 | -5/Factory | Lost 3 parts (2u1w) 8544 | -5/Factory | Discovered new exit (range 6) 8683 | -5/Factory | Entered another Factory area 8683 | -4/Factory | Evolved 2 slots: Power x1, Weapon x1 9177 | -4/Factory | Identified exit to Garrison 9177 | -4/Factory | Entered Garrison 9204 | -4/Garrison | Garrison Relay disabled 9211 | -4/Garrison | Triggered checkpoint 9251 | -4/Garrison | Triggered checkpoint 9313 | -4/Garrison | Spotted B-90 Cyclops 9323 | -4/Garrison | Triggered checkpoint 9405 | -4/Garrison | Destroyed B-90 Cyclops 9533 | -4/Garrison | Rescued a captive Derelict 9543 | -4/Garrison | Rescued a captive Derelict 9548 | -4/Garrison | Garrison Relay disabled 9629 | -4/Garrison | Triggered checkpoint 9639 | -4/Garrison | Triggered checkpoint 9675 | -4/Garrison | Triggered checkpoint 9697 | -4/Garrison | Triggered checkpoint 9741 | -4/Garrison | Lost 3 parts (2u1w) 9748 | -4/Garrison | Destroyed 9 combat bots 9875 | -4/Garrison | Triggered checkpoint 9969 | -4/Garrison | Learned Extension security intel 10042 | -4/Garrison | Discovered new exit (range 12) 10267 | -4/Garrison | Triggered checkpoint 10306 | -4/Garrison | Garrison Relay disabled 10342 | -4/Garrison | Discovered new exit (range 5) 10460 | -4/Garrison | Spotted B-86 Titan 10527 | -4/Garrison | Spotted B-86 Titan 10527 | -4/Garrison | Spotted B-86 Titan 10603 | -4/Garrison | Expanded RIF knowledge: Watcher Feeds 10619 | -4/Garrison | Triggered checkpoint 10625 | -4/Garrison | Triggered checkpoint 10626 | -4/Garrison | Discovered new exit (range 14) 10646 | -4/Garrison | Entered Extension 10678 | -4/Extension | Rescued a captive Derelict 10687 | -4/Extension | Rescued a captive Derelict 10837 | -4/Extension | Build established: Scavenger-Construct 10893 | -4/Extension | Rescued a captive Derelict 10898 | -4/Extension | Rescued a captive Derelict 10936 | -4/Extension | Spotted B-86 Titan 10970 | -4/Extension | Lost 3 parts (1u2w) 10981 | -4/Extension | Lost 3 allies 11021 | -4/Extension | Rescued A7 11028 | -4/Extension | Spotted B-86 Titan 11033 | -4/Extension | Allies destroyed B-86 Titan 11045 | -4/Extension | Allies destroyed B-86 Titan 11069 | -4/Extension | Lost 3 allies 11181 | -4/Extension | Rescued a captive Derelict 11257 | -4/Extension | Rescued a captive Derelict 11257 | -4/Extension | Rescued a captive Derelict 11354 | -4/Extension | Discovered new exit (range 10) 11355 | -4/Extension | Discovered new exit (range 6) 11387 | -4/Extension | Entered Cetus 11387 | -4/Cetus | Accompanied by 13 allies (A7) 11392 | -4/Cetus | Acquired a Cetus Manufacturing Module code from A7 11399 | -4/Cetus | Spotted Cetus Guard 11399 | -4/Cetus | Spotted Cetus Guard 11401 | -4/Cetus | Spotted Cetus Guard 11401 | -4/Cetus | Spotted Cetus Guard 11416 | -4/Cetus | Destroyed Cetus Guard 11424 | -4/Cetus | Destroyed Cetus Guard 11427 | -4/Cetus | Allies destroyed Cetus Guard 11427 | -4/Cetus | Allies destroyed Cetus Guard 11451 | -4/Cetus | Build established: Commander-Construct 11473 | -4/Cetus | Started Cetus Manufacturing Module 11498 | -4/Cetus | Manufactured an Enhanced Grunt 11514 | -4/Cetus | Escorted A7 to Cetus Mainframe 11523 | -4/Cetus | Manufactured an Enhanced Grunt 11525 | -4/Cetus | Discovered new exit (range 15) 11548 | -4/Cetus | Manufactured an Enhanced Grunt 11573 | -4/Cetus | Manufactured an Enhanced Grunt 11598 | -4/Cetus | Manufactured an Enhanced Grunt 11598 | -4/Cetus | Entered Archives 11598 | -4/Archives | Accompanied by 13 allies (A7) 11603 | -4/Archives | Received a hacking code to weaken MAIN.C 11634 | -4/Archives | Discovered new exit (range 15) 11647 | -4/Archives | Discovered new exit (range 15) 11656 | -4/Archives | Discovered new exit (range 16) 11682 | -4/Archives | Unable to access archive contents 11708 | -4/Archives | Entered Hub_04(d) 11708 | -4/Hub_04(d) | Accompanied by 11 allies 11790 | -4/Hub_04(d) | Discovered new exit (range 10) 11959 | -4/Hub_04(d) | Discovered new exit (range 5) 11984 | -4/Hub_04(d) | First assault squad dispatched 12297 | -4/Hub_04(d) | Entered Research 12297 | -3/Research | Evolved 2 slots: Utility x1, Weapon x1 12311 | -3/Research | Lost 6 allies 12582 | -3/Research | Build established: Scavenger-Construct 12676 | -3/Research | Found Prototype Device 12981 | -3/Research | Identified Exp. EM Disruption Field 13008 | -3/Research | Lost 3 parts (2u1w) 13047 | -3/Research | First assault squad dispatched 13147 | -3/Research | Released all parts (8) 13174 | -3/Research | Lost 5 parts (3u2w) 13199 | -3/Research | Found Prototype Processor 13200 | -3/Research | Identified Spectral Analyzer 13219 | -3/Research | Discovered new exit (range 6) 13222 | -3/Research | Entered another Research area 13222 | -2/Research | Evolved 2 slots: Utility x2 13447 | -2/Research | Build established: Mutant 13510 | -2/Research | Lost 5 parts (1p3u1w) 13579 | -2/Research | Spotted B-90 Cyclops 13682 | -2/Research | Destroyed B-90 Cyclops 13831 | -2/Research | Spotted B-90 Cyclops 13903 | -2/Research | Core integrity fell below 50% 13913 | -2/Research | Released all parts (2) 13933 | -2/Research | Core integrity fell below 20% 13940 | -2/Research | Lost 19 parts (4p3n7u5w) 13968 | -2/Research | Destroyed by P-80 Master with Gamma Rifle Last Messages --------------- 13918_ Slug penetrates Wall. 13928_ Penetrated by Slug. 13930_ K-01 Serf cleans the Subatomic Condenser. 13937_ Slug penetrates Wall. 13938_ K-01 Serf cleans the Subatomic Condenser. 13940_ Slug penetrates H-88 Terminator. 13940_ Slug penetrates Wall. 13941_ Slug penetrates Door. 13942_ Penetrated by Slug. 13943_ Slammed into G-73 Enforcer. 13955_ Acquired Micro-nuke Launcher. 13957_ G-73 Enforcer destroyed. 13957_ K-01 Serf destroyed. 13959_ ALERT: Hostile activity reported, dispatching reinforcements to area. 13961_ A-15 Conveyor destroyed. 13963_ The unstable cave ceiling collapses. 13963_ Destroyed Hvy. Laser. 13965_ The unstable cave ceiling collapses. 13965_ G-73 Enforcer destroyed. Map ----- +----------------------------------------------------+ | ?????????????????????????????????????????????? | | ?????????????????????????????????????????????? | | ?????????????????????????????????????????????? | | ?????????????????????????????????????????????? | | ?????????????????????????????????????????????? | | ?????????????????????????????????????????????? | | ?????????????????????????????????????????????? | | ?????????????????????????????????????????????? | | ?????????????????????????????????????????????? | | ?????????????????????????????????????????????? | | ?????????????????????????????????????????????? | | ?????????????????????????????????????????????? | | ?????????????????????????????????????????????? | | ?????????????????????????????????????????????? | | ???????????# ????????????????????????????????? | | ???????????? ???????????????????????????????? | | ???????????? ??????????????????????????????? | | ????????????## ##########??????????? #???????? | | ????????????# #?????????? #???????? | | ????????????#T #######+## #???????? | | ?????????????# #?####### | | ?????????????# ??# | | ?????????????# p ? ??# | | ?????????????# ^ ! #+###+##?# | | ?????????????# ] # #?# | | ?????????????????# @ #?# | | ?????????????????# #?# | | ?????????????????# ??####### | | ?????????????????+ [ ?????????? | | ?????????????????# ?????????? | | ?????????????????# = g ########### | | ?????????????????# = Y%%%% | | ?????????????????######### g ###### | | ?????????????????????????? ?# # | | ??????????????????????????? " ?# + | | ??????????????????????????? "" "??# ####"# | | ???????????????????????????? ??# ## | | ????????????????????????????? ?????# ## | | ???????????????????????????????????# ## | | ???????????????????????????????????# ## | | ???????????????????????????????????# ## | | ???????????????????????????????????# ## | | ???????????????????????????????????########### | | ?????????????????????????????????????????????? | | ?????????????????????????????????????????????? | | ?????????????????????????????????????????????? | | ????????????????????#+#??????????????????????? | | ???????????????????? ??????????????????????? | | ???????????????????? ??????????????????????? | | ???????????????????? ??????????????????????? | +----------------------------------------------------+ Best States ------------- Heat Dissipation 122 Energy Generation 98 Energy Capacity 1316 Matter Stores 450 Matter Capacity 450 Sight Range 20 Terrain Scan Density 10 Jamming Range 16 Power Amplification 30 Base Temperature (-) 100 Armor Coverage 1200 Resistance: KI 20 Resistance: TH 20 Resistance: EX 20 Resistance: EM 95 Resistance: I 20 Resistance: S 20 Resistance: P 20 Weapon Cycling 20 Phase Shifting 15 Evasion (%) 58 Targeting Accuracy 8 Target Analysis 8 Recoil Reduction 4 Matter Filtering 50 Kinecelleration 40 Offensive Hacking 10 Item Schematics ----------------- None Robot Schematics ------------------ None Fabricated ------------ Nothing Alien Tech Used ----------------- None Achievements -------------- None Challenges ------------ None Game ------ Seed LightpackPlasmaHumpback Manual? 0 Play Time 02:46:24 Cumulative 246.6 hours Start 2024.12.01 @ 22:25:57 End 2024.12.02 @ 02:22:32 Sessions 1 Manual Loads 0 Difficulty Adventurer Special Mode None Game No. 170 Rogue 91 Adventurer 79 Explorer 0 Win Type - Total 18 Types 13/1/0/4/0/0/0/0/0 Lore% 55 Gallery% 78 Achievement% 73 Wizard Run 0 Options --------- Layout 1 ASCII 0 Keyboard 0 Movement Mouse Keybinds 0 Fullscreen 2 Font 24/Terminus Map View 50x35 Zoom Use 0% Tactical HUD 1 Map Filters NONE Filters NONE Steam 1 RUN: 880ead3c-91f2-48e7-a722-2ffef9c95f27